fUSD/lending_fUSD_20250929
["ID","MTS","AMOUNT","RATE_DAILY","PERIOD"]
[388358674,1759121434922,-561.92260041,0.000182,2]
[388358675,1759121434934,-624.24683828,0.000182,2]
[388358676,1759121434945,-1275.38029364,0.000182,2]
[388358677,1759121434955,-651.28099306,0.000182,2]
[388358678,1759121434967,-571.92035639,0.000182,2]
[388358679,1759121434979,-7933.29346671,0.000182,2]
[388358680,1759121434989,-407.08715542,0.000182,2]
[388358681,1759121435000,-1310.18616096,0.000182,2]
[388358682,1759121435011,-874.81556192,0.000182,2]
[388358683,1759121435068,-627.03415411,0.000182,2]
[388358684,1759121435079,-405.22777865,0.000182,2]
[388358685,1759121435090,-743.60537916,0.000182,2]
[388358686,1759121435158,151.39405738,0.000245,30]
[388358687,1759121435183,-4213.13899362,0.000182,2]
[388358688,1759121435193,-5242.34919561,0.000182,2]
[388358689,1759121436445,910.0,0.000245,30]
[388358716,1759121441393,-9257.02535602,0.000182,2]
[388358717,1759121441404,-1441.28510772,0.000182,2]
[388358718,1759121441416,-1796.93034065,0.000182,2]
[388358719,1759121441426,-520.03180438,0.000182,2]
[388358720,1759121441438,-1016.20242027,0.000182,2]
[388358721,1759121441500,-5301.32006969,0.000182,2]
[388358722,1759121441512,-521.6,0.000182,2]
[388358723,1759121441523,-7637.54258579,0.000182,2]
[388358724,1759121441534,-1252.49949946,0.000182,2]
[388358725,1759121441669,-370.9049188,0.000182,2]
[388358726,1759121441682,-1117.48870161,0.000182,2]
[388358727,1759121441692,-247.0,0.000182,2]
[388358728,1759121441702,-111.93129839,0.00018217,2]
[388358729,1759121441771,-39.06870161,0.00018217,2]
[388358730,1759121441781,-239.84119403,0.00018217,2]
[388358731,1759121441790,-721.27788973,0.00018241,2]
[388358732,1759121441802,-85.46211027,0.00018241,2]
[388358733,1759121441815,-373.15,0.00018241,2]
[388358734,1759121441825,-946.58,0.00018341,2]
[388358735,1759121441835,-806.74,0.00018341,2]
[388358736,1759121441844,-806.74,0.00018341,2]
[388358737,1759121441854,-179.85,0.00018345,2]
[388358738,1759121441863,-233.0,0.0001835,2]
[388358739,1759121441873,-756.1832044,0.00018477,2]
[388358740,1759121441883,-542.63715,0.000185,2]
[388358741,1759121441892,-151.0,0.00018589,2]
[388358742,1759121441902,-601.3376128,0.00018589,2]
[388358743,1759121441912,-151.0,0.00018589,2]
[388358744,1759121441921,-151.0,0.00018589,2]
[388358745,1759121441931,-322.6107,0.00018589,2]
[388358746,1759121441940,-151.0,0.00018589,2]
[388358747,1759121441950,-151.0,0.00018589,2]
[388358748,1759121441959,-151.0,0.00018589,2]
[388358749,1759121441969,-151.0,0.00018589,2]
[388358750,1759121441979,-151.0,0.00018589,2]
[388358751,1759121441988,-151.0,0.00018589,2]
[388358752,1759121441998,-151.0,0.00018589,2]
[388358753,1759121442007,-151.0,0.00018589,2]
[388358754,1759121442017,-151.0,0.00018589,2]
[388358755,1759121442027,-151.0,0.00018589,2]
[388358756,1759121442036,-151.0,0.00018589,2]
[388358757,1759121442046,-151.0,0.00018589,2]
[388358758,1759121442059,-151.0,0.00018589,2]
[388358759,1759121442069,-151.0,0.00018589,2]
[388358760,1759121442079,-151.22422958,0.00018589,2]
[388358761,1759121442088,-500.0,0.00018589,2]
[388358762,1759121442098,-500.0,0.00018589,2]
[388358763,1759121442108,-500.0,0.00018589,2]
[388358764,1759121442117,-500.0,0.00018589,2]
[388358765,1759121442127,-500.0,0.00018589,2]
[388358766,1759121442136,-500.0,0.00018589,2]
[388358767,1759121442146,-500.0,0.00018589,2]
[388358768,1759121442156,-500.0,0.00018589,2]
[388358769,1759121442165,-500.0,0.00018589,2]
[388358770,1759121442175,-500.0,0.00018589,2]
[388358771,1759121442185,-319.27024215,0.00018589,2]
[388358772,1759121442194,-500.0,0.00018589,2]
[388358773,1759121442205,-500.0,0.00018589,2]
[388358774,1759121442215,-500.0,0.00018589,2]
[388358775,1759121442224,-500.0,0.00018589,2]
[388358776,1759121442233,-200.0,0.00018589,2]
[388358777,1759121442242,-500.0,0.00018589,2]
[388358778,1759121442252,-500.0,0.00018589,2]
[388358779,1759121442261,-500.0,0.00018589,2]
[388358780,1759121442270,-500.0,0.00018589,2]
[388358781,1759121442280,-500.0,0.00018589,2]
[388358782,1759121442291,-233.76,0.00018594,2]
[388358783,1759121442300,-233.0,0.00018598,2]
[388358784,1759121442310,-200.0,0.000186,6]
[388358785,1759121442320,-233.0,0.00018614,2]
[388358786,1759121442330,-168.0,0.0001863,2]
[388358787,1759121442340,-553.68532857,0.00018648,2]
[388358788,1759121442352,-1020.64310861,0.00018648,2]
[388358789,1759121442363,-500.0,0.000187,6]
[388358790,1759121442373,-756.1832044,0.00018743,2]
[388358791,1759121442383,-2213.10361114,0.00018764,2]
[388358792,1759121442395,-1184.89638886,0.00018764,2]
[388358793,1759121442406,-787.0,0.00018764,2]
[388358794,1759121442415,-1264.0,0.00018764,2]
[388358795,1759121442425,-2044.0,0.00018764,2]
[388358796,1759121442435,-603.0,0.00018764,2]
[388358797,1759121442445,-417.765,0.00018764,2]
[388358798,1759121442454,-1305.452,0.00018764,2]
[388358799,1759121442464,-682.739,0.00018764,2]
[388358800,1759121442474,-817.0,0.00018764,2]
[388358801,1759121442483,-6232.0,0.00018764,2]
[388358802,1759121442493,-4113.0,0.00018764,2]
[388358803,1759121442503,-728.0,0.00018764,2]
[388358804,1759121442512,-9893.06522255,0.00018764,2]
[388358805,1759121442550,-2320.91988194,0.00018764,2]
[388358806,1759121442562,-2166.37608666,0.00018764,2]
[388358815,1759121443601,-245.68,0.00018589,2]
[388358816,1759121443618,-673.50149428,0.00018764,2]
[388358817,1759121443631,-352.42983766,0.00018764,2]
[388358824,1759121443680,-666.10340973,0.00018764,2]
[388358825,1759121443699,-694.99999995,0.00018764,2]
[388358828,1759121443876,-421.48223619,0.00018764,2]
[388358829,1759121443889,-497.84863745,0.00018764,2]
[388358830,1759121443902,-694.42339999,0.00018764,2]
[388358831,1759121443915,-331.95515162,0.00018764,2]
[388358832,1759121444070,-202.89464198,0.00018764,2]
[388358833,1759121444081,-6128.0,0.00018764,2]
[388358834,1759121444092,-1235.0,0.00018784,2]
[388358835,1759121444103,-365.63151793,0.00018793,2]
[388358836,1759121444113,-1000.0,0.000188,2]
[388358837,1759121444123,-1000.0,0.000188,2]
[388358838,1759121444135,-700.0,0.000188,6]
[388358839,1759121444145,-15401.10447134,0.00018804,2]
[388358840,1759121444156,-157.54494001,0.00018826,2]
[388358841,1759121444166,-4650.36425054,0.00018826,2]
[388358842,1759121444176,-300.0,0.00018857,2]
[388358843,1759121444187,-1000.0,0.000189,6]
[388358844,1759121444197,-292.0,0.00018904,2]
[388358845,1759121444208,-292.0,0.00018904,2]
[388358846,1759121444219,-292.0,0.00018904,2]
[388358847,1759121444229,-292.0,0.00018904,2]
[388358848,1759121444241,-292.0,0.00018904,2]
[388358849,1759121444251,-292.0,0.00018904,2]
[388358850,1759121444261,-292.0,0.00018904,2]
[388358851,1759121444271,-292.0,0.00018904,2]
[388358852,1759121444281,-292.0,0.00018904,2]
[388358853,1759121444291,-292.0,0.00018904,2]
[388358854,1759121444302,-292.0,0.00018904,2]
[388358855,1759121444312,-292.0,0.00018904,2]
[388358856,1759121444323,-292.0,0.00018904,2]
[388358857,1759121444334,-292.0,0.00018904,2]
[388358858,1759121444344,-292.0,0.00018904,2]
[388358859,1759121444354,-292.0,0.00018904,2]
[388358860,1759121444364,-292.0,0.00018904,2]
[388358861,1759121444375,-292.0,0.00018904,2]
[388358862,1759121444385,-292.0,0.00018904,2]
[388358863,1759121444395,-292.0,0.00018904,2]
[388358864,1759121444406,-292.0,0.00018904,2]
[388358865,1759121444416,-292.0,0.00018904,2]
[388358866,1759121444426,-292.0,0.00018904,2]
[388358867,1759121444436,-292.0,0.00018904,2]
[388358868,1759121444452,-292.0,0.00018904,2]
[388358869,1759121444462,-292.0,0.00018904,2]
[388358870,1759121444472,-292.0,0.00018904,2]
[388358871,1759121444482,-292.0,0.00018904,2]
[388358872,1759121444492,-292.0,0.00018904,2]
[388358873,1759121444502,-292.0,0.00018904,2]
[388358874,1759121444512,-292.0,0.00018904,2]
[388358875,1759121444523,-292.0,0.00018904,2]
[388358876,1759121444533,-292.0,0.00018904,2]
[388358877,1759121444544,-292.0,0.00018904,2]
[388358878,1759121444555,-292.0,0.00018904,2]
[388358879,1759121444579,-292.0,0.00018904,2]
[388358880,1759121444590,-292.0,0.00018904,2]
[388358881,1759121444600,-292.0,0.00018904,2]
[388358882,1759121444611,-292.0,0.00018904,2]
[388358883,1759121444622,-292.0,0.00018904,2]
[388358884,1759121444633,-292.0,0.00018904,2]
[388358885,1759121444643,-292.0,0.00018904,2]
[388358886,1759121444653,-292.0,0.00018904,2]
[388358887,1759121444663,-292.0,0.00018904,2]
[388358888,1759121444674,-292.0,0.00018904,2]
[388358889,1759121444684,-292.0,0.00018904,2]
[388358890,1759121444694,-292.0,0.00018904,2]
[388358891,1759121444704,-292.0,0.00018904,2]
[388358892,1759121444714,-292.0,0.00018904,2]
[388358893,1759121444726,-292.0,0.00018904,2]
[388358894,1759121444738,-292.0,0.00018904,2]
[388358895,1759121444748,-292.0,0.00018904,2]
[388358896,1759121444758,-292.0,0.00018904,2]
[388358897,1759121444768,-292.0,0.00018904,2]
[388358898,1759121444778,-292.0,0.00018904,2]
[388358899,1759121444788,-292.0,0.00018904,2]
[388358900,1759121444798,-292.0,0.00018904,2]
[388358901,1759121444808,-292.0,0.00018904,2]
[388358902,1759121444819,-292.0,0.00018904,2]
[388358903,1759121444830,-292.0,0.00018904,2]
[388358904,1759121444840,-292.0,0.00018904,2]
[388358905,1759121444850,-292.0,0.00018904,2]
[388358906,1759121444865,-292.0,0.00018904,2]
[388358907,1759121444875,-292.0,0.00018904,2]
[388358908,1759121444885,-292.0,0.00018904,2]
[388358909,1759121444895,-292.0,0.00018904,2]
[388358910,1759121444905,-292.0,0.00018904,2]
[388358911,1759121444916,-292.0,0.00018904,2]
[388358912,1759121444926,-292.0,0.00018904,2]
[388358913,1759121444937,-292.0,0.00018904,2]
[388358914,1759121444947,-292.0,0.00018904,2]
[388358915,1759121444958,-292.0,0.00018904,2]
[388358916,1759121444972,-292.0,0.00018904,2]
[388358917,1759121444982,-292.0,0.00018904,2]
[388358918,1759121444992,-292.0,0.00018904,2]
[388358919,1759121445005,-292.0,0.00018904,2]
[388358920,1759121445472,-292.0,0.00018904,2]
[388358921,1759121445483,-292.0,0.00018904,2]
[388358922,1759121445493,-292.0,0.00018904,2]
[388358923,1759121445503,-292.0,0.00018904,2]
[388358924,1759121445513,-292.0,0.00018904,2]
[388358925,1759121445523,-292.0,0.00018904,2]
[388358926,1759121445533,-292.0,0.00018904,2]
[388358927,1759121445543,-292.0,0.00018904,2]
[388358928,1759121445566,-292.0,0.00018904,2]
[388358929,1759121445580,-292.0,0.00018904,2]
[388358930,1759121445591,-292.0,0.00018904,2]
[388358931,1759121445601,-292.0,0.00018904,2]
[388358932,1759121445612,-292.0,0.00018904,2]
[388358933,1759121445622,-292.0,0.00018904,2]
[388358934,1759121445633,-292.0,0.00018904,2]
[388358935,1759121445643,-292.0,0.00018904,2]
[388358936,1759121445654,-292.0,0.00018904,2]
[388358937,1759121445664,-292.0,0.00018904,2]
[388358938,1759121445674,-292.0,0.00018904,2]
[388358939,1759121445684,-292.0,0.00018904,2]
[388358940,1759121445695,-292.0,0.00018904,2]
[388358941,1759121445705,-153.0,0.00018904,2]
[388358942,1759121445715,-153.0,0.00018904,2]
[388358943,1759121445727,-153.0,0.00018904,2]
[388358944,1759121445739,-153.0,0.00018904,2]
[388358945,1759121445750,-153.0,0.00018904,2]
[388358946,1759121445760,-153.0,0.00018904,2]
[388358947,1759121445770,-153.0,0.00018904,2]
[388358948,1759121445781,-153.0,0.00018904,2]
[388358949,1759121445791,-153.0,0.00018904,2]
[388358950,1759121445803,-153.0,0.00018904,2]
[388358951,1759121445813,-153.0,0.00018904,2]
[388358952,1759121445824,-153.0,0.00018904,2]
[388358953,1759121445834,-153.0,0.00018904,2]
[388358954,1759121445844,-153.0,0.00018904,2]
[388358955,1759121445854,-153.0,0.00018904,2]
[388358956,1759121445864,-153.0,0.00018904,2]
[388358957,1759121445874,-153.0,0.00018904,2]
[388358959,1759121445884,-153.0,0.00018904,2]
[388358960,1759121445894,-153.0,0.00018904,2]
[388358962,1759121445904,-153.0,0.00018904,2]
[388358964,1759121445914,-153.0,0.00018904,2]
[388358965,1759121445924,-153.0,0.00018904,2]
[388358966,1759121445934,-153.0,0.00018904,2]
[388358968,1759121445951,-153.0,0.00018904,2]
[388358970,1759121445962,-153.0,0.00018904,2]
[388358972,1759121445973,-153.0,0.00018904,2]
[388358974,1759121445983,-153.0,0.00018904,2]
[388358975,1759121445994,-153.0,0.00018904,2]
[388358976,1759121446004,-153.0,0.00018904,2]
[388358977,1759121446015,-153.0,0.00018904,2]
[388358978,1759121446026,-153.0,0.00018904,2]
[388358979,1759121446037,-153.0,0.00018904,2]
[388358980,1759121446048,-153.0,0.00018904,2]
[388358981,1759121446058,-153.0,0.00018904,2]
[388358982,1759121446069,-153.0,0.00018904,2]
[388358983,1759121446079,-153.0,0.00018904,2]
[388358984,1759121446091,-153.0,0.00018904,2]
[388358985,1759121446101,-153.0,0.00018904,2]
[388358986,1759121446112,-153.0,0.00018904,2]
[388358987,1759121446122,-153.0,0.00018904,2]
[388358988,1759121446134,-153.0,0.00018904,2]
[388358989,1759121446144,-153.0,0.00018904,2]
[388358990,1759121446155,-153.0,0.00018904,2]
[388358991,1759121446165,-153.0,0.00018904,2]
[388358992,1759121446175,-153.0,0.00018904,2]
[388358993,1759121446186,-153.0,0.00018904,2]
[388358994,1759121446196,-153.0,0.00018904,2]
[388358995,1759121446207,-153.0,0.00018904,2]
[388358996,1759121446218,-153.0,0.00018904,2]
[388358997,1759121446228,-153.0,0.00018904,2]
[388358998,1759121446238,-153.0,0.00018904,2]
[388358999,1759121446248,-153.0,0.00018904,2]
[388359000,1759121446258,-153.0,0.00018904,2]
[388359001,1759121446269,-153.0,0.00018904,2]
[388359002,1759121446279,-153.0,0.00018904,2]
[388359003,1759121446289,-427.37226553,0.00018911,2]
[388359004,1759121446300,-166.53992368,0.00018911,2]
[388359005,1759121446310,-87117.51962139,0.00018912,2]
[388359006,1759121446328,-47665.72470283,0.00018912,2]
[388359007,1759121446344,-15401.10447127,0.00018926,2]
[388359008,1759121446355,-151.0,0.00018926,2]
[388359009,1759121446365,-151.0,0.00018926,2]
[388359010,1759121446376,-151.0,0.00018926,2]
[388359011,1759121446386,-151.0,0.00018926,2]
[388359012,1759121446396,-151.0,0.00018926,2]
[388359013,1759121446407,-151.0,0.00018926,2]
[388359014,1759121446417,-152.095189,0.00018926,2]
[388359015,1759121446428,-151.0,0.00018926,2]
[388359016,1759121446438,-223.694774,0.00018926,2]
[388359017,1759121446449,-151.0,0.00018926,2]
[388359018,1759121446460,-151.0,0.00018926,2]
[388359019,1759121446470,-151.0,0.00018926,2]
[388359020,1759121446481,-151.0,0.00018926,2]
[388359021,1759121446492,-525.094891,0.00018926,2]
[388359022,1759121446503,-525.094891,0.00018926,2]
[388359023,1759121446513,-525.094891,0.00018926,2]
[388359024,1759121446524,-525.094891,0.00018926,2]
[388359025,1759121446535,-155.912533,0.00018926,2]
[388359026,1759121446546,-4650.36425052,0.00018945,2]
[388359027,1759121446556,-559.0,0.00019007,2]
[388359028,1759121446567,-282.0,0.00019034,2]
[388359029,1759121446577,-157.54493997,0.00019041,2]
[388359030,1759121446588,-15401.10447127,0.00019048,2]
[388359031,1759121446599,-3045.585,0.00019058,2]
[388359033,1759121446610,-171.3,0.00019058,2]
[388359035,1759121446621,-4650.36425052,0.00019065,2]
[388359036,1759121446631,-158.73242728,0.00019077,2]
[388359037,1759121446643,-911.35562488,0.00019077,2]
[388359038,1759121446654,-223.99782441,0.00019077,2]
[388359039,1759121446664,-2156.58825636,0.00019077,2]
[388359040,1759121446675,-188.90935336,0.00019077,2]
[388359041,1759121446686,-170.44,0.00019085,2]
[388359042,1759121446697,-1219.0,0.000191,2]
[388359043,1759121446707,-756.1832044,0.00019144,2]
[388359044,1759121446718,-150.92,0.00019167,2]
[388359045,1759121446738,-153.9923396,0.00019167,2]
[388359046,1759121446749,-2243.7553255,0.00019168,2]
[388359047,1759121446760,-223.9978244,0.00019168,2]
[388359048,1759121446771,-15401.10447127,0.00019169,2]
[388359049,1759121446781,-420.0,0.00019171,2]
[388359050,1759121446793,-155.0,0.00019176,2]
[388359051,1759121446804,-1000.0,0.00019176,2]
[388359052,1759121446814,-1000.0,0.00019176,2]
[388359053,1759121446825,-1000.0,0.00019176,2]
[388359054,1759121446837,-1000.0,0.00019176,2]
[388359055,1759121446848,-615.25311361,0.00019176,2]
[388359056,1759121446859,-305.85129817,0.00019176,2]
[388359057,1759121446870,-996.0,0.00019177,2]
[388359058,1759121446881,-3922.80208174,0.00019177,2]
[388359059,1759121446891,-112240.22956485,0.00019177,2]
[388359060,1759121446902,-205804.31314378,0.00019177,2]
[388359061,1759121446916,-1007.65390319,0.00019177,2]
[388359062,1759121446962,-4835.07541093,0.00019177,2]
[388359063,1759121446975,-16010.0,0.00019177,2]
[388359064,1759121447407,-7404.25662237,0.00019177,2]
[388359065,1759121448233,-31631.0649754,0.00019177,2]
[388359066,1759121448257,-951873.49796058,0.00019177,2]
[388359067,1759121448272,-450.90158557,0.00019177,2]
[388359068,1759121448284,-1177.95232909,0.00019177,2]
[388359069,1759121448295,-4289.61028403,0.00019177,2]
[388359070,1759121448307,-2114.48594429,0.00019177,2]
[388359071,1759121448319,-2000.10778969,0.00019177,2]
[388359072,1759121448363,-245.68,0.00018863,2]
[388359073,1759121448373,-626.66441435,0.00019177,2]
[388359074,1759121448385,-614.1800125,0.00019177,2]
[388359075,1759121448397,-1232.19,0.00019177,2]
[388359076,1759121448408,-97453.75073727,0.00019177,2]
[388359077,1759121450095,500.0,0.000245,30]
[388359078,1759121451160,-182.65208571,0.00018199,2]
[388359079,1759121451170,-500.0,0.00018199,2]
[388359080,1759121451179,-238.19578945,0.00018199,2]
[388359081,1759121451192,-29.11366285,0.00018199,2]
[388359082,1759121451202,-500.0,0.00018199,2]
[388359083,1759121451211,-401.24633715,0.00018589,2]
[388359084,1759121451222,-1073.5,0.00018589,2]
[388359085,1759121451234,-772.30519032,0.00018589,2]
[388359086,1759121451246,-1200.69662182,0.00018589,2]
[388359087,1759121451568,-849.29920251,0.00018589,2]
[388359088,1759121451579,-2726.3626482,0.00018589,2]
[388359089,1759121451589,-7023.41,0.00018863,2]
[388359090,1759121451598,-245.68,0.00019137,2]
[388359091,1759121451608,-7023.41,0.00019137,2]
[388359092,1759121451617,-175631.28691058,0.00019177,2]
[388359093,1759121451626,-152.70329608,0.00019177,2]
[388359094,1759121451635,-150.0,0.00019177,2]
[388359095,1759121451646,-151.0,0.00019177,2]
[388359096,1759121451655,-151.0,0.00019177,2]
[388359097,1759121451665,-151.0,0.00019177,2]
[388359098,1759121451675,-151.0,0.00019177,2]
[388359099,1759121451684,-151.0,0.00019177,2]
[388359100,1759121451694,-201.475229,0.00019177,2]
[388359101,1759121451703,-152.517493,0.00019177,2]
[388359102,1759121451712,-151.0,0.00019177,2]
[388359103,1759121451722,-241.167961,0.00019177,2]
[388359104,1759121451734,-151.409799,0.00019177,2]
[388359105,1759121451744,-221.304985,0.00019177,2]
[388359106,1759121451753,-151.0,0.00019177,2]
[388359107,1759121451762,-151.0,0.00019177,2]
[388359108,1759121452167,-152.326903,0.00019177,2]
[388359109,1759121452177,-151.0,0.00019177,2]
[388359110,1759121452186,-151.0,0.00019177,2]
[388359111,1759121452196,-151.0,0.00019177,2]
[388359112,1759121452205,-151.0,0.00019177,2]
[388359113,1759121452215,-156.11235,0.00019177,2]
[388359114,1759121452224,-151.0,0.00019177,2]
[388359115,1759121452233,-151.0,0.00019177,2]
[388359116,1759121452243,-151.0,0.00019177,2]
[388359117,1759121452252,-151.0,0.00019177,2]
[388359118,1759121452262,-151.0,0.00019177,2]
[388359119,1759121452272,-151.0,0.00019177,2]
[388359120,1759121452281,-151.0,0.00019177,2]
[388359121,1759121452292,-151.0,0.00019177,2]
[388359122,1759121452302,-151.0,0.00019177,2]
[388359123,1759121452312,-151.0,0.00019177,2]
[388359124,1759121452323,-151.0,0.00019177,2]
[388359125,1759121452333,-151.0,0.00019177,2]
[388359126,1759121452343,-151.0,0.00019177,2]
[388359127,1759121452353,-151.0,0.00019177,2]
[388359128,1759121452362,-151.0,0.00019177,2]
[388359129,1759121452372,-151.0,0.00019177,2]
[388359130,1759121452382,-151.0,0.00019177,2]
[388359131,1759121452391,-151.0,0.00019177,2]
[388359132,1759121452400,-151.0,0.00019177,2]
[388359133,1759121452410,-151.0,0.00019177,2]
[388359134,1759121452419,-151.0,0.00019177,2]
[388359135,1759121452429,-403.864663,0.00019177,2]
[388359136,1759121452439,-403.864663,0.00019177,2]
[388359137,1759121452449,-403.864663,0.00019177,2]
[388359138,1759121452458,-403.864663,0.00019177,2]
[388359139,1759121452468,-152.926492,0.00019177,2]
[388359140,1759121452477,-403.864663,0.00019177,2]
[388359141,1759121452487,-403.864663,0.00019177,2]
[388359142,1759121452497,-151.0,0.00019177,2]
[388359143,1759121452507,-151.0,0.00019177,2]
[388359144,1759121452517,-403.864663,0.00019177,2]
[388359145,1759121452526,-403.864663,0.00019177,2]
[388359146,1759121452536,-151.0,0.00019177,2]
[388359147,1759121452546,-151.0,0.00019177,2]
[388359148,1759121452555,-151.0,0.00019177,2]
[388359149,1759121452565,-151.0,0.00019177,2]
[388359150,1759121452575,-217.126011,0.00019177,2]
[388359151,1759121452585,-151.0,0.00019177,2]
[388359152,1759121452594,-151.0,0.00019177,2]
[388359153,1759121452603,-151.0,0.00019177,2]
[388359154,1759121452612,-151.0,0.00019177,2]
[388359155,1759121452621,-151.0,0.00019177,2]
[388359156,1759121452631,-151.0,0.00019177,2]
[388359157,1759121452639,-151.0,0.00019177,2]
[388359158,1759121452649,-151.0,0.00019177,2]
[388359159,1759121452658,-151.0,0.00019177,2]
[388359160,1759121452668,-151.0,0.00019177,2]
[388359161,1759121452678,-151.0,0.00019177,2]
[388359162,1759121452687,-151.0,0.00019177,2]
[388359163,1759121452696,-151.0,0.00019177,2]
[388359164,1759121452706,-151.0,0.00019177,2]
[388359165,1759121452714,-151.0,0.00019177,2]
[388359166,1759121452723,-151.88383,0.00019177,2]
[388359167,1759121452738,-151.0,0.00019177,2]
[388359168,1759121452747,-151.0,0.00019177,2]
[388359169,1759121452756,-151.0,0.00019177,2]
[388359170,1759121452766,-151.0,0.00019177,2]
[388359171,1759121452776,-159.510502,0.00019177,2]
[388359172,1759121452786,-151.0,0.00019177,2]
[388359173,1759121452795,-151.0,0.00019177,2]
[388359174,1759121452805,-151.0,0.00019177,2]
[388359175,1759121452815,-151.0,0.00019177,2]
[388359176,1759121452825,-151.0,0.00019177,2]
[388359177,1759121452834,-151.0,0.00019177,2]
[388359178,1759121452844,-151.0,0.00019177,2]
[388359179,1759121452854,-151.0,0.00019177,2]
[388359180,1759121452864,-151.0,0.00019177,2]
[388359181,1759121452874,-151.0,0.00019177,2]
[388359182,1759121452883,-153.280022,0.00019177,2]
[388359183,1759121452893,-151.0,0.00019177,2]
[388359184,1759121452902,-151.0,0.00019177,2]
[388359185,1759121452912,-151.0,0.00019177,2]
[388359186,1759121452921,-151.0,0.00019177,2]
[388359187,1759121452931,-151.0,0.00019177,2]
[388359188,1759121452941,-151.0,0.00019177,2]
[388359189,1759121452951,-171.237253,0.00019177,2]
[388359190,1759121452960,-151.0,0.00019177,2]
[388359191,1759121452969,-151.0,0.00019177,2]
[388359192,1759121452979,-151.0,0.00019177,2]
[388359193,1759121452988,-151.0,0.00019177,2]
[388359194,1759121452998,-151.0,0.00019177,2]
[388359195,1759121453007,-151.0,0.00019177,2]
[388359196,1759121453017,-166.0464,0.00019177,2]
[388359197,1759121453027,-151.0,0.00019177,2]
[388359198,1759121453037,-151.0,0.00019177,2]
[388359199,1759121453048,-151.0,0.00019177,2]
[388359200,1759121453058,-151.0,0.00019177,2]
[388359201,1759121453068,-151.0,0.00019177,2]
[388359202,1759121453078,-151.0,0.00019177,2]
[388359203,1759121453089,-151.0,0.00019177,2]
[388359204,1759121453099,-151.0,0.00019177,2]
[388359205,1759121453110,-151.0,0.00019177,2]
[388359206,1759121453120,-151.0,0.00019177,2]
[388359207,1759121453130,-183.042839,0.00019177,2]
[388359208,1759121453140,-183.042839,0.00019177,2]
[388359209,1759121453150,-183.042839,0.00019177,2]
[388359210,1759121453160,-183.042839,0.00019177,2]
[388359211,1759121453170,-183.042839,0.00019177,2]
[388359212,1759121453180,-183.042839,0.00019177,2]
[388359213,1759121453190,-183.042839,0.00019177,2]
[388359214,1759121453200,-183.042839,0.00019177,2]
[388359215,1759121453209,-183.042839,0.00019177,2]
[388359216,1759121453219,-183.042839,0.00019177,2]
[388359217,1759121453229,-183.042839,0.00019177,2]
[388359218,1759121453239,-183.042839,0.00019177,2]
[388359219,1759121453249,-151.0,0.00019177,2]
[388359220,1759121453258,-151.0,0.00019177,2]
[388359221,1759121453268,-151.0,0.00019177,2]
[388359222,1759121453277,-151.0,0.00019177,2]
[388359223,1759121453287,-151.0,0.00019177,2]
[388359224,1759121453297,-151.0,0.00019177,2]